[Event "Championnat du monde jeunes U10"]
[Date "2024.11.26"]
[White "Youn, Laeho"]
[Black "Vedrickas, Vytis"]
[WhiteElo "1520"]
[BlackElo "1642"]
[Round "11.16"]
[Result "0-1"]
[TimeControl "5400+30"]

1. e4 {[%clk 1:30:55]} 1... c5 {[%clk 1:30:27]} 2. Nf3 {[%clk 1:31:13]} 2... g6
{[%clk 1:30:41]} 3. c3 {[%clk 1:31:04]} 3... Bg7 {[%clk 1:30:43]} 4. d4 {[%clk
1:30:40]} 4... cxd4 {[%clk 1:30:41]} 5. cxd4 {[%clk 1:30:29]} 5... d5 {[%clk
1:30:52]} 6. e5 {[%clk 1:30:12]} 6... a6 {[%clk 1:31:10]} 7. Be3 {[%clk
1:29:37]} 7... Nc6 {[%clk 1:29:13]} 8. Nc3 {[%clk 1:23:44]} 8... Bg4 {[%clk
1:24:34]} 9. h3 {[%clk 1:22:14]} 9... Bxf3 {[%clk 1:24:42]} 10. Qxf3 {[%clk
1:21:11]} 10... e6 {[%clk 1:22:54]} 11. Bd3 {[%clk 1:13:26]} 11... Nge7 {[%clk
1:20:22]} 12. O-O {[%clk 1:13:45]} 12... O-O {[%clk 1:18:01]} 13. Qg4 {[%clk
1:07:51]} 13... Nf5 {[%clk 1:07:52]} 14. Bxf5 {[%clk 1:07:34]} 14... gxf5 {[%clk
1:05:51]} 15. Qg3 {[%clk 1:07:38]} 15... Kh8 {[%clk 1:05:40]} 16. Na4 {[%clk
1:06:30]} 16... Rg8 {[%clk 1:03:44]} 17. Qf3 {[%clk 1:06:18]} 17... Qh4 {[%clk
0:59:49]} 18. Rfd1 {[%clk 1:06:04]} 18... Nxe5 {[%clk 0:58:41]} 19. dxe5 {[%clk
1:05:39]} 19... Qxa4 {[%clk 0:57:51]} 20. Rd4 {[%clk 1:05:58]} 20... Qe8 {[%clk
0:53:48]} 21. Rh4 {[%clk 1:06:20]} 21... f6 {[%clk 0:53:33]} 22. Re1 {[%clk
1:04:38]} 22... fxe5 {[%clk 0:49:50]} 23. Bd2 {[%clk 1:04:35]} 23... Bf6 {[%clk
0:49:24]} 24. Rh6 {[%clk 1:04:28]} 24... Rg6 {[%clk 0:49:10]} 25. Rh5 {[%clk
1:04:33]} 25... Qf7 {[%clk 0:48:38]} 26. Rc1 Rag8 {[%clk 0:48:22]} 27. Kh1
{[%clk 1:04:07]} 27... Rxg2 {[%clk 0:47:30]} 28. Ba5 {[%clk 1:03:54]} 28... Qg6
{[%clk 0:47:11]} 29. Qd1 {[%clk 0:58:51]} 29... Rh2+ {[%clk 0:47:17]} 0-1

[Variant "Standard"]
[Site "Europe Echecs"]

[Event "Championnat du monde jeunes U10"]
[Date "2024.11.26"]
[White "Kostyukovich, Ivan"]
[Black "Radovic, Koca"]
[WhiteElo "1489"]
[BlackElo "1626"]
[Round "11.17"]
[Result "1-0"]
[TimeControl "5400+30"]

1. e4 {[%clk 1:30:53]} 1... e5 {[%clk 1:30:46]} 2. Nf3 {[%clk 1:31:19]} 2... Nc6
{[%clk 1:31:07]} 3. Bc4 {[%clk 1:31:40]} 3... Bc5 {[%clk 1:31:26]} 4. c3 {[%clk
1:31:51]} 4... d6 {[%clk 1:29:36]} 5. d3 {[%clk 1:31:08]} 5... Nf6 {[%clk
1:29:48]} 6. Be3 {[%clk 1:31:20]} 6... Bb6 {[%clk 1:30:04]} 7. O-O {[%clk
1:31:04]} 7... O-O {[%clk 1:30:23]} 8. Nbd2 {[%clk 1:30:58]} 8... h6 {[%clk
1:30:19]} 9. d4 {[%clk 1:30:43]} 9... exd4 {[%clk 1:22:08]} 10. cxd4 {[%clk
1:30:42]} 10... Bg4 {[%clk 1:22:21]} 11. Qc2 {[%clk 1:25:55]} 11... Nb4 {[%clk
1:21:17]} 12. Qb1 {[%clk 1:25:43]} 12... Re8 {[%clk 1:11:59]} 13. e5 {[%clk
1:23:52]} 13... dxe5 {[%clk 1:07:37]} 14. dxe5 {[%clk 1:19:59]} 14... Nd7 {[%clk
1:04:13]} 15. Qe4 {[%clk 1:19:18]} 15... Bxf3 {[%clk 0:57:05]} 16. Nxf3 {[%clk
1:18:34]} 16... Qe7 {[%clk 0:53:41]} 17. Bxb6 {[%clk 1:16:20]} 17... axb6 {[%clk
0:52:42]} 18. e6 {[%clk 1:09:56]} 18... fxe6 {[%clk 0:42:41]} 19. Bxe6+ {[%clk
1:08:33]} 19... Qxe6 {[%clk 0:40:52]} 20. Qxb4 {[%clk 1:08:00]} 20... Rxa2
{[%clk 0:37:17]} 21. Rae1 {[%clk 1:08:07]} 21... Qf7 {[%clk 0:36:56]} 22. Rxe8+
{[%clk 1:08:16]} 22... Qxe8 {[%clk 0:36:46]} 23. Qc4+ {[%clk 1:08:33]} 23... Qf7
{[%clk 0:36:14]} 24. Qxc7 {[%clk 1:08:54]} 24... Rxb2 {[%clk 0:35:17]} 25. Qxb7
{[%clk 1:09:02]} 25... Ne5 {[%clk 0:34:47]} 26. Qb8+ {[%clk 1:09:02]} 26... Kh7
{[%clk 0:31:13]} 27. Qxe5 {[%clk 1:09:17]} 27... Rb3 {[%clk 0:29:48]} 28. Nd4
{[%clk 1:09:11]} 28... Rb4 {[%clk 0:29:19]} 29. Qf5+ {[%clk 1:07:43]} 29... Qxf5
{[%clk 0:29:38]} 30. Nxf5 {[%clk 1:08:07]} 30... b5 {[%clk 0:29:57]} 31. Ne7
{[%clk 1:07:48]} 31... Rc4 {[%clk 0:29:51]} 32. Rb1 {[%clk 1:07:53]} 32... b4
{[%clk 0:30:04]} 33. Nd5 {[%clk 1:08:17]} 33... b3 {[%clk 0:30:19]} 34. Kf1
{[%clk 1:08:17]} 34... Rc5 {[%clk 0:29:59]} 35. Ne3 {[%clk 1:08:10]} 35... Rb5
{[%clk 0:30:17]} 36. Ke2 {[%clk 1:07:57]} 36... Kg6 {[%clk 0:30:19]} 37. Kd3
{[%clk 1:07:59]} 37... Rb8 {[%clk 0:30:16]} 38. Kc3 {[%clk 1:08:12]} 38... Rc8+
{[%clk 0:30:13]} 39. Kxb3 {[%clk 1:08:33]} 39... Rb8+ {[%clk 0:30:33]} 40. Kc2
{[%clk 1:08:55]} 1-0

[Variant "Standard"]
[Site "Europe Echecs"]

[Event "Championnat du monde jeunes U10"]
[Date "2024.11.26"]
[White "Hung, I-Hsuan"]
[Black "Osmolovskii, Nikita"]
[WhiteElo "1608"]
[BlackElo "1468"]
[Round "11.19"]
[Result "1-0"]
[TimeControl "5400+30"]

1. e4 {[%clk 1:30:59]} 1... c5 {[%clk 1:30:57]} 2. Nf3 {[%clk 1:31:21]} 2... d6
{[%clk 1:31:18]} 3. Bb5+ {[%clk 1:31:41]} 3... Bd7 {[%clk 1:31:43]} 4. Bxd7+
{[%clk 1:32:02]} 4... Nxd7 {[%clk 1:32:09]} 5. O-O {[%clk 1:32:10]} 5... Ngf6
{[%clk 1:32:31]} 6. Re1 {[%clk 1:32:00]} 6... g6 {[%clk 1:32:59]} 7. c3 {[%clk
1:31:55]} 7... Bg7 {[%clk 1:33:18]} 8. d4 {[%clk 1:32:01]} 8... O-O {[%clk
1:33:34]} 9. b3 {[%clk 1:30:51]} 9... Re8 {[%clk 1:32:03]} 10. Bb2 {[%clk
1:30:08]} 10... h6 {[%clk 1:29:54]} 11. e5 {[%clk 1:20:10]} 11... dxe5 {[%clk
1:28:01]} 12. dxe5 {[%clk 1:19:24]} 12... Ng4 {[%clk 1:27:16]} 13. e6 {[%clk
1:19:38]} 13... fxe6 {[%clk 1:25:49]} 14. Ng5 {[%clk 1:07:36]} 14... Nxf2 {[%clk
1:18:24]} 15. Qe2 {[%clk 1:06:57]} 15... e5 {[%clk 1:15:38]} 16. Ne6 {[%clk
1:06:38]} 16... Qb6 {[%clk 1:06:30]} 17. Nxg7 {[%clk 1:06:48]} 17... Nh3+ {[%clk
1:06:29]} 18. gxh3 {[%clk 1:06:28]} 18... Kxg7 {[%clk 1:06:45]} 19. c4 {[%clk
1:05:57]} 19... Rad8 {[%clk 1:05:11]} 20. Bxe5+ {[%clk 1:02:53]} 20... Nxe5
{[%clk 1:03:57]} 21. Qxe5+ {[%clk 1:03:10]} 21... Kh7 {[%clk 1:04:11]} 22. Rf1
{[%clk 1:02:54]} 22... Rf8 {[%clk 1:03:58]} 23. Qxe7+ {[%clk 1:02:14]} 23... Kg8
{[%clk 1:04:05]} 24. Rxf8+ {[%clk 1:02:31]} 24... Rxf8 {[%clk 1:04:28]} 25. Nc3
{[%clk 1:01:41]} 25... Rf7 {[%clk 1:04:42]} 26. Qe3 {[%clk 1:00:22]} 26... Qf6
{[%clk 1:04:33]} 27. Re1 {[%clk 0:58:04]} 27... Kg7 {[%clk 1:02:59]} 28. Qe5
{[%clk 0:58:20]} 28... Qxe5 {[%clk 0:59:14]} 29. Rxe5 {[%clk 0:58:44]} 29... b6
{[%clk 0:59:25]} 30. Nd5 {[%clk 0:58:40]} 30... Kf8 {[%clk 0:59:12]} 31. Re6
{[%clk 0:57:41]} 31... Rg7 {[%clk 0:57:38]} 32. Rc6 {[%clk 0:56:45]} 32... Kg8
{[%clk 0:51:26]} 33. Rc7 {[%clk 0:56:57]} 33... Rxc7 {[%clk 0:51:36]} 34. Nxc7
{[%clk 0:57:24]} 34... Kf7 {[%clk 0:51:53]} 35. Nb5 {[%clk 0:57:00]} 35... a6
{[%clk 0:52:14]} 36. Nc7 {[%clk 0:57:23]} 36... Ke7 {[%clk 0:52:04]} 37. Nd5+
{[%clk 0:57:39]} 37... Kd6 {[%clk 0:52:04]} 38. Nxb6 {[%clk 0:57:41]} 38... Kc6
{[%clk 0:52:16]} 39. Na4 {[%clk 0:57:55]} 39... Kd6 {[%clk 0:52:11]} 40. Kf2
{[%clk 0:58:19]} 40... Kc6 {[%clk 0:52:30]} 41. Ke3 {[%clk 0:58:41]} 41... Kd6
{[%clk 0:52:41]} 42. Ke4 {[%clk 0:59:03]} 42... a5 {[%clk 0:52:22]} 43. a3
{[%clk 0:59:16]} 43... Ke6 {[%clk 0:52:28]} 44. Nxc5+ {[%clk 0:59:28]} 44... Kd6
{[%clk 0:52:48]} 45. b4 {[%clk 0:59:47]} 45... axb4 {[%clk 0:53:08]} 46. axb4
{[%clk 0:59:48]} 46... Kc6 {[%clk 0:53:34]} 47. Ke5 {[%clk 1:00:08]} 47... Kb6
{[%clk 0:53:57]} 48. Kf6 {[%clk 1:00:21]} 48... Kc7 {[%clk 0:54:10]} 49. Kxg6
{[%clk 1:00:41]} 49... Kd8 {[%clk 0:54:12]} 50. Ne4 {[%clk 1:00:55]} 50... Ke8
{[%clk 0:54:27]} 51. b5 {[%clk 1:01:14]} 51... Kd8 {[%clk 0:54:45]} 52. c5
{[%clk 1:01:39]} 52... Kc7 {[%clk 0:55:09]} 53. b6+ {[%clk 1:01:54]} 53... Kb8
{[%clk 0:55:23]} 54. c6 {[%clk 1:02:14]} 54... Kc8 {[%clk 0:55:48]} 55. Nd6+
{[%clk 1:02:32]} 55... Kd8 {[%clk 0:53:16]} 56. c7+ {[%clk 1:02:50]} 56... Kd7
{[%clk 0:53:13]} 57. c8=R {[%clk 1:03:06]} 57... Kxd6 {[%clk 0:53:30]} 58. b7
{[%clk 1:03:30]} 58... Ke7 {[%clk 0:53:33]} 59. b8=R {[%clk 1:03:42]} 59... Kd7
{[%clk 0:53:56]} 60. Re8 {[%clk 1:03:49]} 60... Kc7 61. Rbd8 {[%clk 1:04:06]}
61... Kc6 {[%clk 0:54:36]} 62. Re1 {[%clk 1:04:25]} 62... Kc7 {[%clk 0:54:01]}
63. Rd2 {[%clk 1:04:47]} 63... Kc6 {[%clk 0:53:41]} 64. Rc1+ {[%clk 1:05:11]}
64... Kb5 {[%clk 0:53:41]} 65. Rb2+ {[%clk 1:05:33]} 65... Ka4 {[%clk 0:53:11]}
66. Ra1# {[%clk 1:05:55]} 1-0

[Variant "Standard"]
[Site "Europe Echecs"]

[Event "Championnat du monde jeunes U10"]
[Date "2024.11.26"]
[White "Button-Rabl, Jiban"]
[Black "Veber, Tibor"]
[WhiteElo "1435"]
[BlackElo "1532"]
[Round "11.23"]
[Result "0-1"]
[TimeControl "5400+30"]

1. e4 {[%clk 1:30:10]} 1... e6 {[%clk 1:30:47]} 2. d4 {[%clk 1:30:08]} 2... d5
{[%clk 1:29:56]} 3. exd5 {[%clk 1:30:24]} 3... exd5 {[%clk 1:30:01]} 4. c4
{[%clk 1:30:21]} 4... Nf6 {[%clk 1:30:08]} 5. Nc3 {[%clk 1:30:30]} 5... Bb4
{[%clk 1:28:33]} 6. Nf3 {[%clk 1:29:45]} 6... O-O {[%clk 1:28:27]} 7. cxd5
{[%clk 1:27:34]} 7... Nxd5 {[%clk 1:25:56]} 8. Bd2 {[%clk 1:26:15]} 8... Re8+
{[%clk 1:24:27]} 9. Be2 {[%clk 1:25:55]} 9... Nxc3 {[%clk 1:23:40]} 10. bxc3
{[%clk 1:25:40]} 10... Bd6 {[%clk 1:23:34]} 11. O-O {[%clk 1:25:27]} 11... Bg4
{[%clk 1:22:04]} 12. h3 {[%clk 1:24:49]} 12... Bh5 {[%clk 1:21:36]} 13. Rb1
{[%clk 1:23:22]} 13... b6 {[%clk 1:20:00]} 14. Re1 {[%clk 1:22:15]} 14... Nd7
{[%clk 1:18:14]} 15. Qb3 {[%clk 1:20:13]} 15... Nf6 {[%clk 1:12:07]} 16. Bc4
{[%clk 1:18:10]} 16... Qd7 {[%clk 1:06:19]} 17. Ng5 {[%clk 1:17:35]} 17... h6
{[%clk 1:02:36]} 18. Ne6 {[%clk 1:16:23]} 18... fxe6 {[%clk 0:57:10]} 19. Bxe6+
{[%clk 1:16:08]} 19... Rxe6 {[%clk 0:57:24]} 20. Rxe6 {[%clk 1:16:24]} 20... Bf7
{[%clk 0:57:08]} 21. Rxd6 {[%clk 1:16:28]} 21... Qxd6 {[%clk 0:57:03]} 22. Qc2
{[%clk 1:16:23]} 22... Re8 {[%clk 0:56:29]} 23. Be3 {[%clk 1:16:33]} 23... Nd5
{[%clk 0:55:34]} 24. Re1 {[%clk 1:16:41]} 24... Nxe3 {[%clk 0:55:34]} 25. fxe3
{[%clk 1:17:08]} 25... Qg3 {[%clk 0:54:16]} 26. e4 {[%clk 1:17:22]} 26... Qxe1+
{[%clk 0:54:27]} 0-1

[Variant "Standard"]
[Site "Europe Echecs"]

[Event "Championnat du monde jeunes U10"]
[Date "2024.11.26"]
[White "Vukashinovikj, Jovan"]
[Black "McFadden, Oisin"]
[WhiteElo "1454"]
[BlackElo "1464"]
[Round "11.29"]
[Result "1-0"]
[TimeControl "5400+30"]

1. e4 {[%clk 1:30:58]} 1... c5 2. Nf3 {[%clk 1:31:19]} 2... Nc6 {[%clk 1:29:42]}
3. Bc4 {[%clk 1:31:37]} 3... g6 {[%clk 1:27:44]} 4. O-O {[%clk 1:30:52]} 4...
Bg7 {[%clk 1:25:45]} 5. d3 {[%clk 1:30:52]} 5... d6 {[%clk 1:23:53]} 6. h3
{[%clk 1:30:46]} 6... Nf6 {[%clk 1:20:57]} 7. Nc3 {[%clk 1:29:45]} 7... O-O
{[%clk 1:19:51]} 8. Be3 {[%clk 1:28:33]} 8... e6 {[%clk 1:15:09]} 9. Qd2 {[%clk
1:28:45]} 9... Re8 {[%clk 1:13:13]} 10. Bh6 {[%clk 1:26:25]} 10... Bh8 {[%clk
1:10:05]} 11. Rae1 {[%clk 1:23:13]} 11... Nd7 {[%clk 1:04:39]} 12. Nh2 {[%clk
1:17:10]} 12... Nde5 {[%clk 0:57:28]} 13. f4 {[%clk 1:14:01]} 13... Nxc4 {[%clk
0:55:26]} 14. dxc4 {[%clk 1:13:42]} 14... Bd4+ {[%clk 0:53:29]} 15. Kh1 {[%clk
1:14:00]} 15... Ne7 {[%clk 0:43:18]} 16. g4 {[%clk 1:10:32]} 16... Kh8 {[%clk
0:37:35]} 17. Nb5 {[%clk 1:08:43]} 17... Qb6 {[%clk 0:30:02]} 18. c3 {[%clk
1:07:46]} 18... a6 {[%clk 0:27:26]} 19. Nxd4 {[%clk 1:05:48]} 19... cxd4 {[%clk
0:25:29]} 20. cxd4 {[%clk 1:04:21]} 20... Ng8 {[%clk 0:24:23]} 21. g5 {[%clk
1:03:56]} 21... Nxh6 {[%clk 0:20:28]} 22. gxh6 {[%clk 1:01:33]} 22... Bd7 {[%clk
0:19:09]} 23. Qc3 {[%clk 1:01:26]} 23... d5 {[%clk 0:17:14]} 24. Ng4 {[%clk
0:58:49]} 24... Rec8 {[%clk 0:15:31]} 25. c5 {[%clk 0:58:59]} 25... Qd8 {[%clk
0:15:14]} 26. Ne5 {[%clk 0:58:44]} 26... Be8 {[%clk 0:14:41]} 27. Qg3 {[%clk
0:55:25]} 27... dxe4 {[%clk 0:14:19]} 28. Qc3 {[%clk 0:55:01]} 28... Qd5 {[%clk
0:14:24]} 29. Re3 {[%clk 0:54:57]} 29... Bb5 {[%clk 0:12:16]} 30. Rfe1 {[%clk
0:52:12]} 30... Kg8 {[%clk 0:10:44]} 31. a4 {[%clk 0:49:43]} 31... Bxa4 {[%clk
0:10:09]} 32. Nc4 {[%clk 0:50:03]} 32... Qc6 {[%clk 0:08:08]} 33. d5 {[%clk
0:48:40]} 33... f6 {[%clk 0:07:30]} 34. dxc6 {[%clk 0:49:07]} 34... Rf8 {[%clk
0:07:24]} 35. Nb6 {[%clk 0:49:30]} 35... Rad8 {[%clk 0:07:15]} 36. c7 {[%clk
0:49:41]} 36... Rde8 {[%clk 0:07:04]} 37. c8=Q {[%clk 0:50:06]} 37... Rxc8
{[%clk 0:07:20]} 38. Nxc8 {[%clk 0:50:29]} 38... Bc6 {[%clk 0:07:23]} 39. Nd6
{[%clk 0:50:48]} 39... Bd5 {[%clk 0:07:21]} 40. Qa5 {[%clk 0:51:05]} 40... Bc6
{[%clk 0:07:35]} 41. Qc7 {[%clk 0:51:29]} 41... Bd7 {[%clk 0:07:45]} 42. Qxd7
{[%clk 0:51:53]} 42... Rf7 {[%clk 0:08:09]} 43. Qxf7+ {[%clk 0:52:16]} 43... Kh8
{[%clk 0:08:30]} 44. Qf8# {[%clk 0:52:13]} 1-0

[Variant "Standard"]
[Site "Europe Echecs"]